[Event "44th Chess Olympiad Open 2022"]
[Site "Chennai"]
[Date "2022.08.09"]
[Round "11.1"]
[White "Keymer, Vincent"]
[Black "Gukesh D"]
[Result "1/2-1/2"]
[ECO "D38"]
[WhiteElo "2686"]
[BlackElo "2684"]
[Annotator "TA"]
[PlyCount "149"]
[EventDate "2022.07.29"]
[EventType "team-tourn"]
[EventCountry "IND"]
[SourceTitle "playchess.com"]
[Source "ChessBase"]
[SourceQuality "1"]
[WhiteTeam "Germany"]
[BlackTeam "India"]
[WhiteTeamCountry "GER"]
[BlackTeamCountry "IND"]
[TimeControl "40/5400+30:1800+30"]

{[%evp 18,149,14,7,13,14,37,29,37,20,24,16,18,0,0,0,0,0,0,0,0,0,0,0,0,0,3,3,3,3,7,0,0,0,0,0,6,0,2,2,9,2,20,20,20,20,45,22,45,45,45,45,45,45,45,25,25,25,45,45,45,45,45,45,45,45,45,45,45,45,45,45,45,8,8,8,8,8,8,0,0,0,8,0,0,0,0,0,0,0,0,0,0,0,0,0,7,0,0,0,0,0,0,0,0,0,0,0,0,0,8,8,117,20,117,92,117,117,117,117,117,117,117,117,117,117,117,20,20,20,20,20,20,8]} 1. d4 {[%emt 0:00:04]} Nf6 {[%emt 0:01:19]} 2. c4 {[%emt 0:00:05]} e6 {[%emt 0:00:26]} 3. Nf3 {[%emt 0:00:05]} d5 {[%emt 0:00:28]} 4. Nc3 {[%emt 0:00:05]} Bb4 {[%emt 0:01:49]} 5. cxd5 {[%emt 0:00:11]} exd5 {[%emt 0:00:06]} 6. Qa4+ {[%emt 0:00:04]} Nc6 {[%emt 0:00:06]} 7. Bg5 {[%emt 0:00:03]} h6 {[%emt 0:04:28]} 8. Bxf6 {[%emt 0:00:05]} Qxf6 {[%emt 0:00:05]} 9. e3 {[%emt 0:00:04]} O-O {[%emt 0:03:11]} 10. Be2 {[%emt 0:00:29]} Qd6 {[%emt 0:01:51] D38: Queen's Gambit Declined: Ragozin Defence (4 Nf3 Bb4).} 11. O-O {[%emt 0:09:01]} Bxc3 {[%emt 0:01:19]} 12. bxc3 {[%emt 0:00:08]} Bd7 {[%emt 0:00:04] [#] White has an edge.} 13. Nd2 $146 {[%emt 0:24:07]} ({Predecessor:} 13. Qc2 Rab8 14. c4 dxc4 15. Qxc4 b5 16. Qc2 Rfc8 17. Rfc1 a5 18. Qc5 b4 19. d5 {1-0 (37) Filip,M-Voiculescu,P Bucharest 1954}) 13... b6 {[%emt 0:01:56]} 14. Qd1 {[%emt 0:12:38]} Na5 {[%emt 0:04:33]} 15. c4 {[%emt 0:01:13]} dxc4 {[%emt 0:00:54]} 16. Nxc4 {[%emt 0:00:05]} Nxc4 {[%emt 0:00:03]} 17. Bxc4 {[%emt 0:00:05]} c5 {[%emt 0:00:39]} 18. dxc5 {[%emt 0:07:04]} Qxc5 {[%emt 0:00:39]} 19. Qxd7 {[%emt 0:00:33]} Qxc4 {[%emt 0:00:04]} 20. Rfc1 {[%emt 0:00:06]} Qe4 {[%emt 0:01:21]} 21. Rd1 {[%emt 0:05:39]} Rfe8 {[%emt 0:02:04]} 22. Rac1 {[%emt 0:08:28]} Re7 {[%emt 0:00:19]} 23. Qd6 {[%emt 0:00:34]} Rae8 {[%emt 0:01:25]} 24. h3 {[%emt 0:04:01]} Re6 {[%emt 0:02:39]} 25. Qd4 {[%emt 0:01:07]} Qxd4 {[%emt 0:00:05]} 26. Rxd4 $11 {[%emt 0:04:23][%mdl 4096] Endgame KRR-KRR} h5 {[%emt 0:04:29]} 27. Kf1 {[%emt 0:00:00]} g6 {[%emt 0:00:30]} 28. Ke2 {[%emt 0:00:00]} b5 {[%emt 0:01:41]} 29. a4 {[%emt 0:00:00]} bxa4 {[%emt 0:00:50]} 30. Rxa4 {[%emt 0:00:00]} Rb8 {[%emt 0:00:26]} 31. Ra2 {[%emt 0:00:00]} Re7 {[%emt 0:02:37]} 32. Rc6 {[%emt 0:00:13]} Kg7 {[%emt 0:00:07]} 33. Rca6 {[%emt 0:00:08]} Rbb7 {[%emt 0:00:06]} 34. Kf3 {[%emt 0:01:49]} Rbc7 {[%emt 0:01:41]} 35. R6a5 {[%emt 0:03:14]} Rb7 {[%emt 0:00:00]} 36. g4 {[%emt 0:00:30]} hxg4+ {[%emt 0:00:00]} 37. hxg4 {[%emt 0:00:03]} Rbc7 {[%emt 0:00:00]} 38. Kg3 {[%emt 0:00:15]} Rb7 {[%emt 0:00:10]} 39. R2a3 {[%emt 0:00:06]} Rbc7 {[%emt 0:05:19]} 40. g5 {[%emt 0:00:20]} Rb7 {[%emt 0:00:32]} 41. f3 {[%emt 0:06:54]} Rec7 {[%emt 0:36:44]} 42. e4 {[%emt 0:24:02]} Re7 {[%emt 0:00:55]} 43. Kf4 {[%emt 0:00:11]} Rec7 {[%emt 0:00:30]} 44. Ra1 {[%emt 0:01:07]} Rd7 {[%emt 0:00:17]} 45. Rd5 {[%emt 0:02:57]} Rxd5 {[%emt 0:05:35]} 46. exd5 {[%emt 0:00:40] [#] aiming for Ra6. KR-KR} f6 $1 {[%emt 0:00:03]} 47. Ra4 {[%emt 0:05:41]} Kf7 {[%emt 0:03:20]} 48. Ke4 {[%emt 0:02:32]} fxg5 {[%emt 0:01:54]} 49. Ke5 {[%emt 0:08:31]} Re7+ {[%emt 0:00:18]} 50. Kd4 {[%emt 0:02:40]} Ke8 {[%emt 0:08:08]} 51. Ra3 {[%emt 0:00:00]} Rf7 {[%emt 0:00:00]} 52. Ke5 {[%emt 0:00:00]} Re7+ {[%emt 0:00:00]} 53. Kd6 {[%emt 0:00:00]} Kd8 {[%emt 0:00:00]} 54. Kc5 {[%emt 0:00:00]} Rc7+ {[%emt 0:05:32]} 55. Kd4 {[%emt 0:00:00]} Rf7 {[%emt 0:01:03]} 56. Ke5 {[%emt 0:00:00]} a5 {[%emt 0:03:50]} 57. Rxa5 {[%emt 0:01:42] [#] White wants to mate with Ra8+.} Rxf3 {[%emt 0:00:09]} 58. Ke6 {[%emt 0:01:56] Intending Ra8+ and mate.} Re3+ {[%emt 0:01:04]} 59. Kd6 {[%emt 0:00:04][%cal Ra5a8]} Kc8 {[%emt 0:01:13]} 60. Ra4 {[%emt 0:00:27]} Rd3 {[%emt 0:00:34]} 61. Rc4+ {[%emt 0:01:00]} Kd8 {[%emt 0:00:18]} 62. Ra4 {[%emt 0:00:12][%cal Ra4a8]} Kc8 {[%emt 0:00:06]} 63. Rg4 {[%emt 0:00:17]} Rd1 {[%emt 0:00:07]} 64. Rxg5 {[%emt 0:00:05]} Rd2 {[%emt 0:00:28]} (64... Ra1 $11 {keeps the balance.}) 65. Rxg6 $16 {[%emt 0:00:07]} Rd1 $1 {[%emt 0:00:18]} 66. Rh6 {[%emt 0:00:18]} Kb7 {[%emt 0:00:57]} 67. Rh2 {[%emt 0:00:49]} Kc8 {[%emt 0:00:48]} 68. Rh5 {[%emt 0:00:06]} Rd2 {[%emt 0:00:47]} 69. Rh8+ {[%emt 0:00:23]} Kb7 {[%emt 0:00:02]} 70. Rh7+ {[%emt 0:00:34]} Kc8 {[%emt 0:00:06]} 71. Rc7+ {[%emt 0:00:20]} Kd8 {[%emt 0:00:18][%cal Od2d5]} 72. Rc4 {[%emt 0:00:17]} ({Better is} 72. Rf7 $16 {[%cal Rf7f8]} Ke8 73. Re7+ Kd8 74. Rd7+ Ke8 75. Rh7) 72... Rh2 $11 {[%emt 0:02:50] The position is equal.} 73. Re4 {[%emt 0:00:04]} Ra2 {[%emt 0:00:35]} 74. Re6 {[%emt 0:00:48]} Ra1 {[%emt 0:00:17]} (74... Ra6+ 75. Ke5 Ra7 76. Rd6+ Kc8 77. Rc6+ Kd8 78. Rh6 Re7+ 79. Kd6 Rd7+ 80. Kc5) 75. Re2 {[%emt 0:00:18] Weighted Error Value: White=0.04 (flawless) /Black=0.03 (flawless)} 1/2-1/2

[Event "44th Chess Olympiad Open 2022"]
[Site "Chennai"]
[Date "2022.08.09"]
[Round "11.1"]
[White "Sarin Nihal"]
[Black "Bluebaum, Matthias"]
[Result "1-0"]
[ECO "D02"]
[WhiteElo "2651"]
[BlackElo "2673"]
[Annotator "TA"]
[PlyCount "109"]
[EventDate "2022.07.29"]
[EventType "team-tourn"]
[EventCountry "IND"]
[SourceTitle "playchess.com"]
[Source "ChessBase"]
[SourceQuality "1"]
[WhiteTeam "India"]
[BlackTeam "Germany"]
[WhiteTeamCountry "IND"]
[BlackTeamCountry "GER"]
[TimeControl "40/5400+30:1800+30"]

{[%evp 9,109,0,0,8,9,6,12,15,10,0,14,4,39,38,37,41,51,51,56,53,50,45,45,40,40,39,45,42,58,47,56,48,47,52,89,85,113,95,111,106,113,110,106,88,78,88,105,92,84,108,87,100,106,87,73,16,16,15,14,15,19,16,16,20,139,121,168,163,277,273,408,409,393,406,457,459,852,806,1339,1055,1234,1201,1285,681,1637,1587,1714,1543,2705,2649,2800,2714,2428,2468,12812,12684,29967,29967,29971,29975,4610,4610]} 1. d4 {[%emt 0:00:37]} Nf6 {[%emt 0:00:19]} 2. Nf3 {[%emt 0:00:06]} d5 {[%emt 0:00:13]} 3. Bf4 {[%emt 0:00:05]} c5 {[%emt 0:01:14]} 4. e3 {[%emt 0:00:20]} e6 {[%emt 0:00:44]} 5. c3 {[%emt 0:02:12]} Bd6 {[%emt 0:02:01]} 6. Nbd2 {[%emt 0:02:17][%cal Bb1d2,Bd2f3,Bf3d4][%mdl 32] D02: 1 d4 d5 2 Nf3 sidelines, including 2...Nf6 3 g3 and 2...Nf6 3 Bf4.} Bxf4 {[%emt 0:07:48]} 7. exf4 {[%emt 0:00:18]} Qc7 {[%emt 0:01:35]} 8. g3 {[%emt 0:00:36] The position is equal.} O-O {[%emt 0:00:34]} 9. Bd3 {[%emt 0:04:23]} cxd4 {[%emt 0:03:36]} 10. Nxd4 {[%emt 0:00:14]} Nc6 {[%emt 0:01:16]} 11. N2f3 {[%emt 0:02:07]} Nxd4 {[%emt 0:03:17]} 12. Nxd4 {[%emt 0:00:48]} e5 {[%emt 0:02:29]} 13. fxe5 {[%emt 0:01:21]} Qxe5+ {[%emt 0:00:34]} 14. Qe2 {[%emt 0:00:06]} Qd6 {[%emt 0:04:42]} 15. O-O {[%emt 0:02:08] [#]} Re8 $146 {[%emt 0:04:27]} ({Predecessor:} 15... Bg4 16. Qc2 g6 17. Rfe1 a6 18. Qd2 Kg7 19. Kg2 Rfe8 20. h3 Bd7 21. Rxe8 Rxe8 {0-1 (62) Babiy,O (2283)-Martinez Alcantara,J (2608) Chess.com INT 2021}) 16. Qd2 {[%emt 0:00:36]} Bd7 {[%emt 0:03:00]} 17. Rfe1 {[%emt 0:01:44]} Ng4 {[%emt 0:04:58]} 18. Re2 {[%emt 0:08:23]} Qf6 {[%emt 0:14:07]} 19. Rae1 {[%emt 0:04:56][%cal Od3f5] And now Bf5! would win.} Ne5 {[%emt 0:02:44]} 20. Re3 {[%emt 0:06:49]} g6 {[%emt 0:02:54]} 21. Bf1 {[%emt 0:32:32]} Kg7 {[%emt 0:05:33]} 22. b3 $1 {[%emt 0:02:09][%cal Bb2b3,Bb3b4][%mdl 32]} Nc6 {[%emt 0:11:38]} 23. Rf3 $1 {[%emt 0:04:55]} Qd6 {[%emt 0:02:10]} 24. Nb5 {[%emt 0:00:42]} Qc5 {[%emt 0:11:13]} 25. b4 {[%emt 0:00:28]} Qf8 {[%emt 0:00:03]} 26. Nc7 {[%emt 0:12:57]} Rxe1 {[%emt 0:00:34]} 27. Qxe1 {[%emt 0:00:05]} Rd8 {[%emt 0:01:22]} (27... Bg4 $2 28. Re3 (28. Rf4 Rc8 $16) 28... Rc8 29. Nxd5 $16) 28. Nxd5 {[%emt 0:00:53] Threatens to win with b5. White is more active.} Qd6 {[%emt 0:04:25]} 29. c4 {[%emt 0:03:24]} Be6 {[%emt 0:01:45]} 30. Rd3 {[%emt 0:00:41] Strongly threatening b5.} Qe5 {[%emt 0:02:38]} 31. Qd2 {[%emt 0:00:23]} Qa1 {[%emt 0:01:07]} 32. a3 {[%emt 0:06:32]} ({White should try} 32. f4 $16) 32... Ne5 {[%emt 0:00:32][%csl LRc4,LRd3]} 33. Qc3 {[%emt 0:00:24]} Qxc3 {[%emt 0:00:13]} 34. Rxc3 {[%emt 0:00:05]} b5 {[%emt 0:01:06]} 35. f4 {[%emt 0:00:59]} Nxc4 {[%emt 0:00:24]} 36. Nc7 {[%emt 0:00:05]} Bf5 {[%emt 0:00:44] White stays focused until the end.} (36... Rd1 $11 37. Nxe6+ fxe6) 37. Nxb5 $16 {[%emt 0:00:18]} Rd1 {[%emt 0:00:01]} 38. Kf2 $18 {[%emt 0:01:04]} (38. Rxc4 Bd3 39. Rc5 Rxf1+ 40. Kg2 Ra1 $16) 38... Nd2 {[%emt 0:00:44]} (38... Nb2 $142 39. Be2 (39. Nxa7 Rd7 $11) 39... Ra1) 39. Bd3 {[%emt 0:00:10] Black must now prevent Bxf5.} a6 {[%emt 0:00:44]} (39... Ra1 {keeps fighting.} 40. Ke3 (40. Nxa7 Ra2 $16) 40... a6 41. Kxd2 Bxd3) 40. Bxf5 {[%emt 0:00:53]} gxf5 {[%emt 0:00:29][%mdl 4096] Endgame KRN-KRN} 41. Ke2 {[%emt 0:11:52]} Rh1 {[%emt 0:02:18] Hoping for ...Ne4.} 42. Kxd2 {[%emt 0:03:13]} Rxh2+ {[%emt 0:00:59]} (42... axb5 $142 43. h4 Kg6) 43. Ke3 {[%emt 0:00:06]} axb5 {[%emt 0:00:05] [#] KR-KR} 44. Kd4 $1 {[%emt 0:00:02]} h5 {[%emt 0:00:59]} 45. Kc5 {[%emt 0:00:11]} Rh3 {[%emt 0:00:57]} 46. Kxb5 {[%emt 0:00:07] aiming for a4.} h4 {[%emt 0:00:04]} 47. a4 {[%emt 0:00:03][%cal Ba3a4,Ba4a5,Ba5a6,Ba6a7][%mdl 32]} hxg3 {[%emt 0:02:50]} 48. Rc1 {[%emt 0:00:08]} Rh4 {[%emt 0:06:44] [#]} 49. Rg1 $1 {[%emt 0:00:50]} Rxf4 {[%emt 0:00:06]} 50. Rxg3+ {[%emt 0:00:04]} Rg4 {[%emt 0:00:06]} 51. Rf3 {[%emt 0:10:19]} f4 {[%emt 0:01:28]} 52. a5 {[%emt 0:00:08] Intending a6 and mate.} Kf6 {[%emt 0:00:08]} 53. a6 {[%emt 0:00:05]} Ke5 {[%emt 0:00:04]} 54. a7 {[%emt 0:00:16]} Rg8 {[%emt 0:00:05]} 55. Ra3 {[%emt 0:01:17] Weighted Error Value: White=0.05 (flawless) /Black=0.41} 1-0

[Event "44th Chess Olympiad Open 2022"]
[Site "Chennai"]
[Date "2022.08.09"]
[Round "11.1"]
[White "Svane, Rasmus"]
[Black "Praggnanandhaa R"]
[Result "1/2-1/2"]
[ECO "D02"]
[WhiteElo "2649"]
[BlackElo "2648"]
[Annotator "TA"]
[PlyCount "97"]
[EventDate "2022.07.29"]
[EventType "team-tourn"]
[EventCountry "IND"]
[SourceTitle "playchess.com"]
[Source "ChessBase"]
[SourceQuality "1"]
[WhiteTeam "Germany"]
[BlackTeam "India"]
[WhiteTeamCountry "GER"]
[BlackTeamCountry "IND"]
[TimeControl "40/5400+30:1800+30"]

{[%evp 14,97,7,0,-6,-11,0,0,-5,0,0,0,0,-4,-13,-10,-4,-9,0,0,0,0,0,0,21,0,0,0,0,0,0,0,0,-15,0,0,7,0,0,0,0,0,0,0,0,0,0,0,0,0,0,0,0,0,0,0,0,0,0,0,0,0,0,0,0,0,0,0,0,0,0,0,0,0,0,0,0,0,0,0,0,0,0,0,0,0]} 1. Nf3 {[%emt 0:00:05]} d5 {[%emt 0:00:58]} 2. g3 {[%emt 0:00:35]} c5 {[%emt 0:00:54]} 3. Bg2 {[%emt 0:00:13]} Nf6 {[%emt 0:00:09]} 4. O-O {[%emt 0:00:09]} e6 {[%emt 0:00:32][%cal Be7e6,Be6e5][%mdl 32]} 5. d4 {[%emt 0:01:29]} cxd4 {[%emt 0:00:21]} 6. Nxd4 {[%emt 0:00:08]} e5 {[%emt 0:00:11]} 7. Nb3 {[%emt 0:00:46]} Be6 {[%emt 0:00:41]} 8. Nc3 {[%emt 0:00:45] The position is equal.} Be7 {[%emt 0:02:00] D02: 1 d4 d5 2 Nf3 sidelines, including 2...Nf6 3 g3 and 2...Nf6 3 Bf4.} 9. f4 {[%emt 0:00:27]} exf4 {[%emt 0:00:55]} 10. gxf4 $1 {[%emt 0:00:07] 10.gxf4 is better than 10.Bxf4.} g6 {[%emt 0:00:54]} 11. Nd4 {[%emt 0:00:10]} Nc6 {[%emt 0:01:08]} 12. Nxe6 {[%emt 0:00:14]} fxe6 {[%emt 0:00:19]} 13. Kh1 {[%emt 0:00:32]} O-O {[%emt 0:13:07][%cal Bh8f8,Bf8f5,Bf5h5][%mdl 32]} 14. Qd3 {[%emt 0:01:17]} Bb4 {[%emt 0:11:08] [#]} 15. Qh3 $146 {[%emt 0:14:12]} ({Predecessor:} 15. e4 dxe4 16. Qh3 Bxc3 17. Qxe6+ Rf7 18. bxc3 Qa5 19. f5 Re8 20. Qb3 Qe5 21. fxg6 hxg6 22. Bf4 Qh5 23. Rae1 Na5 {½-½ (23) Oliveira,D (2240)-Salzmann,S (2219) LSS email 2018}) 15... Qe7 {[%emt 0:11:44]} 16. e4 {[%emt 0:04:39][%cal Re4d5]} Bxc3 {[%emt 0:08:31]} 17. exd5 {[%emt 0:00:20]} Nxd5 {[%emt 0:00:35] [#] Strongly threatening ...Ba5.} 18. bxc3 {[%emt 0:00:38] c4 is the strong threat.} Rf5 {[%emt 0:01:13]} 19. Be4 {[%emt 0:15:42]} (19. c4 $5 {[%cal Rc4d5]} Rh5 20. Ba3 Rxh3 21. Bxe7 $11) 19... Rh5 {[%emt 0:04:22]} 20. Qg2 {[%emt 0:00:44][%cal Oe4g6] Black must now prevent Bxg6!} Nf6 $1 {[%emt 0:03:06]} (20... Nxc3 $2 {[#]} 21. Bxg6 $1 {[%mdl 512]} hxg6 22. Qxg6+ Kh8 23. Qxh5+ $18) 21. Bd3 {[%emt 0:01:19]} Rf8 {[%emt 0:03:37]} 22. Bd2 {[%emt 0:05:29]} Qd7 {[%emt 0:04:23]} 23. Rae1 {[%emt 0:13:34]} Qd5 {[%emt 0:04:18] Inhibits Bc4.} 24. Qxd5 {[%emt 0:11:56]} exd5 {[%emt 0:00:45]} 25. Kg2 {[%emt 0:03:41]} Ne4 {[%emt 0:05:49]} 26. Bxe4 {[%emt 0:01:07]} dxe4 {[%emt 0:00:07]} 27. Rxe4 {[%emt 0:00:09]} Rd8 {[%emt 0:01:02]} 28. Be3 {[%emt 0:02:53]} Kf7 {[%emt 0:00:56]} 29. Rb1 {[%emt 0:02:04]} Rd7 {[%emt 0:02:35]} 30. a4 {[%emt 0:01:01]} Rhd5 {[%emt 0:03:20]} 31. Rb5 {[%emt 0:03:13]} a6 {[%emt 0:03:32]} 32. Rxd5 {[%emt 0:01:08]} Rxd5 {[%emt 0:00:03]} 33. Bd4 {[%emt 0:05:28]} Nxd4 {[%emt 0:06:29]} 34. Rxd4 $11 {[%emt 0:01:24][%mdl 4096] Endgame KR-KR} Ke6 {[%emt 0:00:13]} 35. Rb4 {[%emt 0:03:20]} Rd2+ {[%emt 0:00:57]} 36. Kg3 {[%emt 0:01:32]} Rxc2 {[%emt 0:00:19]} 37. Rxb7 {[%emt 0:00:20]} Rxc3+ {[%emt 0:00:38]} 38. Kg4 {[%emt 0:00:52]} Kf6 {[%emt 0:00:40]} 39. Rb6+ {[%emt 0:04:53]} Kg7 {[%emt 0:00:15]} 40. Rxa6 {[%emt 0:00:23]} h5+ {[%emt 0:00:20]} 41. Kg5 {[%emt 0:30:53]} Rc5+ {[%emt 0:30:14]} 42. Kh4 {[%emt 0:00:12]} Rc4 {[%emt 0:00:12]} 43. Kg5 {[%emt 0:00:47]} Rc5+ {[%emt 0:00:04]} 44. Kh4 {[%emt 0:00:07]} Rc4 {[%emt 0:00:04]} 45. Kg3 {[%emt 0:00:14]} Rc3+ {[%emt 0:00:12]} 46. Kf2 {[%emt 0:00:40]} Rc2+ {[%emt 0:00:06]} 47. Kg3 {[%emt 0:00:00]} Rc3+ {[%emt 0:00:00]} 48. Kf2 {[%emt 0:00:00]} Rc2+ {[%emt 0:00:00]} 49. Kg3 {[%emt 0:00:00] An interesting draw.  Weighted Error Value: White=0.01 (flawless) /Black=0.01 (flawless)} 1/2-1/2

[Event "44th Chess Olympiad Open 2022"]
[Site "Chennai"]
[Date "2022.08.09"]
[Round "11.1"]
[White "Sadhwani, Raunak"]
[Black "Nisipeanu, Liviu-Dieter"]
[Result "1-0"]
[ECO "B12"]
[WhiteElo "2611"]
[BlackElo "2642"]
[Annotator "TA"]
[PlyCount "93"]
[EventDate "2022.07.29"]
[EventType "team-tourn"]
[EventCountry "IND"]
[SourceTitle "playchess.com"]
[Source "ChessBase"]
[SourceQuality "1"]
[WhiteTeam "India"]
[BlackTeam "Germany"]
[WhiteTeamCountry "IND"]
[BlackTeamCountry "GER"]
[TimeControl "40/5400+30:1800+30"]

{[%evp 15,93,16,31,26,26,25,41,15,7,17,29,19,60,21,81,78,90,89,78,77,75,86,112,70,71,18,106,47,56,4,6,10,10,10,11,0,8,7,28,16,97,96,115,76,96,96,89,89,227,226,516,510,749,478,877,881,881,881,881,881,881,881,881,877,832,795,863,844,860,809,1250,1250,1279,895,1604,1552,1399,1372,810,777]} 1. e4 {[%emt 0:00:01]} c6 {[%emt 0:02:49][%cal Bc7c6,Bc6c5][%mdl 32]} 2. d4 {[%emt 0:00:06]} d5 {[%emt 0:00:05]} 3. e5 {[%emt 0:00:03]} Bf5 {[%emt 0:00:09]} 4. Nf3 {[%emt 0:00:03]} e6 {[%emt 0:00:15]} 5. Be2 {[%emt 0:00:11]} c5 {[%emt 0:02:47]} 6. Be3 {[%emt 0:00:31]} Nd7 {[%emt 0:00:06]} 7. O-O {[%emt 0:01:07]} Ne7 {[%emt 0:00:18]} 8. c4 {[%emt 0:00:14]} dxc4 {[%emt 0:00:27]} 9. Bxc4 {[%emt 0:00:17] B12: Caro-Kann: Advance Variation.} a6 {[%emt 0:00:44]} 10. Nc3 {[%emt 0:00:50]} Nc6 {[%emt 0:08:46]} 11. d5 {[%emt 0:00:34] White is slightly better.} Ncxe5 {[%emt 0:02:01]} 12. Be2 {[%emt 0:00:06]} Nxf3+ {[%emt 0:15:38]} 13. Bxf3 {[%emt 0:00:04] [#]} Ne5 $146 {[%emt 0:00:06]} ({Predecessor:} 13... Qc7 14. Re1 Bd6 15. dxe6 Bxe6 16. Rc1 O-O 17. Nd5 Bxd5 18. Qxd5 Ne5 19. Qxb7 Nxf3+ 20. Qxf3 {½-½ (26) Stewart,S (1925)-Marks,D (1956) ICCF email 2020}) 14. Bf4 {[%emt 0:00:03]} Nd3 {[%emt 0:19:30] [#]} (14... Ng6 $1 $11) 15. dxe6 $1 $16 {[%emt 0:03:51][%mdl 64] Discovered Attack} fxe6 {[%emt 0:00:36]} 16. Bxb7 {[%emt 0:05:14] Black must now prevent Qf3.} Ra7 {[%emt 0:00:38]} 17. Bc6+ {[%emt 0:05:27]} Kf7 {[%emt 0:00:11]} 18. Be4 {[%emt 0:08:28] Hoping for Bxf5.} c4 {[%emt 0:20:11]} 19. Qf3 {[%emt 0:05:39]} Qf6 {[%emt 0:00:37] aiming for ...Bxe4.} 20. Bxd3 {[%emt 0:15:18]} (20. Rad1 $1 $16) 20... Bxd3 {[%emt 0:04:10]} (20... cxd3 $11 21. Rac1 Be7) 21. Rfe1 {[%emt 0:10:07]} (21. Ne4 $16 Qf5 22. Ng5+ Kg8 23. Rfe1) 21... Kg8 $14 {[%emt 0:00:21]} 22. Ne4 {[%emt 0:03:17]} ({White should try} 22. g3 $14) 22... Qxb2 $11 {[%emt 0:06:16]} 23. Ng5 {[%emt 0:14:55]} h6 {[%emt 0:00:09]} 24. Nxe6 {[%emt 0:00:04]} Rf7 {[%emt 0:00:20]} 25. Rad1 {[%emt 0:10:15]} Bb4 {[%emt 0:04:35] A strong pair of Bishops.} (25... Qxa2 $2 26. Qd5 Qb2 27. Nxf8 $18) 26. Re3 {[%emt 0:01:32]} Be7 {[%emt 0:06:58]} ({But not} 26... Qxa2 27. Nxg7 $1 Bc5 28. Re8+ Kh7 29. Rxh8+ Kxh8 30. Ne6 $16) (26... g5 $5 {[%cal Rg5f4]}) 27. h3 {[%emt 0:10:38]} Qf6 {[%emt 0:00:46]} ({Weaker is} 27... Qxa2 28. Nxg7 Qa5 29. Nh5 $18) (27... Qb5 $11 {remains equal.}) 28. Qd5 $1 $16 {[%emt 0:02:27]} Kh7 {[%emt 0:01:48]} 29. Bg3 {[%emt 0:00:07] 0x0.001e3ce968d1dp-1022s more active pieces.} Qf5 {[%emt 0:02:10]} 30. Re5 {[%emt 0:00:06]} Qf6 {[%emt 0:00:31]} 31. Rde1 {[%emt 0:00:01][%cal Bd1e1,Be1e3,Be3f3][%mdl 32] Strongly threatening R1e3.} Rc8 {[%emt 0:01:04] [#] Loses the game.} (31... Rb8 $16) 32. R1e3 $1 $18 {[%emt 0:00:19] And now Rf3 would win.} Bf5 $2 {[%emt 0:00:46]} (32... Qg6 33. Nf4 Rxf4 34. Bxf4 Rd8) 33. Rf3 {[%emt 0:02:59] White is clearly winning.} g6 {[%emt 0:00:28]} 34. Bh4 {[%emt 0:00:45]} Bxe6 {[%emt 0:00:42]} (34... Qxh4 $2 {[#]} 35. Ng5+ $1 {[%mdl 512]} Bxg5 36. Qxf7+ Kh8 37. g4 $18) (34... Qxe5 $142 35. Qxe5 Bxh4) 35. Rxe6 {[%emt 0:00:09][%mdl 64] Pin} ({And not} 35. Rxf6 Bxd5 36. Rxf7+ Bxf7 $15) 35... Qxf3 {[%emt 0:00:10]} 36. gxf3 {[%emt 0:00:06]} Bxh4 {[%emt 0:00:03]} 37. Qe4 {[%emt 0:02:22]} Rg7 {[%emt 0:00:01]} 38. Qxh4 {[%emt 0:00:06]} c3 {[%emt 0:00:04]} 39. Re1 {[%emt 0:00:43]} c2 {[%emt 0:00:27]} 40. Qf4 {[%emt 0:00:07]} Rgc7 {[%emt 0:00:45]} 41. Rc1 {[%emt 0:02:49]} Kg7 {[%emt 0:04:38]} 42. Kg2 {[%emt 0:01:11]} h5 {[%emt 0:00:33]} 43. Qd6 {[%emt 0:00:47]} Rc6 {[%emt 0:00:33]} 44. Qe7+ {[%emt 0:00:04]} Kg8 {[%emt 0:01:31]} 45. f4 {[%emt 0:00:13][%cal Bf3f4,Bf4f5][%mdl 32]} R8c7 {[%emt 0:00:05]} 46. Qe8+ {[%emt 0:00:27]} Kg7 {[%emt 0:00:22]} 47. f5 {[%emt 0:01:01] Weighted Error Value: White=0.19 (very precise) /Black=0.41} 1-0